[Event "98th Caplin Hastings Masters 2024-25"]
[Site "Hastings"]
[Date "2024.12.28"]
[Round "1.2"]
[White "Schimnatkowski, Lukas"]
[Black "Laurent-Paoli, Pierre"]
[Result "0-1"]
[ECO "B23"]
[WhiteElo "2221"]
[BlackElo "2559"]
[Annotator "TA"]
[PlyCount "76"]
[EventDate "2024.12.23"]
[EventType "swiss"]
[EventCountry "ENG"]
[SourceTitle "playchess.com"]
[Source "ChessBase"]
[SourceQuality "1"]
[TimeControl "5400+30"]

{[%evp 9,76,8,15,13,19,12,12,4,13,-3,24,-16,-25,-16,-31,-31,-37,-35,-29,-110,-114,-114,-111,-112,-107,-111,-114,-112,-112,-241,-239,-245,-237,-389,-402,-720,-723,-734,-730,-724,-712,-678,-422,-990,-894,-1418,-1251,-1575,-1616,-1530,-1524,-5381,-1814,-5365,-1393,-1444,-1458,-29991,-531,-29992,-29993,-29993,-29994,-29994,-29993,-29995,-29985,-29985,-29986]} 1. e4 {[%emt 0:00:03]} c5 {[%emt 0:01:21]} 2. Nc3 {[%emt 0:00:07]} Nc6 {[%emt 0:00:32]} 3. f4 {[%emt 0:00:06]} e6 {[%emt 0:04:05]} 4. Nf3 {[%emt 0:00:10]} Nh6 {[%emt 0:00:50]} 5. Bc4 {[%emt 0:00:19]} a6 {[%emt 0:00:25]} 6. a4 {[%emt 0:00:21]} f5 {[%emt 0:01:00][%cal Bf7f5,Bf5e4][%mdl 32]} 7. d3 {[%emt 0:01:42]} b6 {[%emt 0:03:30]} 8. O-O {[%emt 0:02:33]} Bb7 {[%emt 0:02:49]} 9. Qe1 {[%emt 0:13:32]} Be7 {[%emt 0:07:20]} 10. Nd5 {[%emt 0:09:56]} fxe4 {[%emt 0:09:29]} 11. Nxe7 $1 {[%emt 0:13:34]} exf3 {[%emt 0:05:32]} 12. Nxc6 {[%emt 0:00:59]} Bxc6 {[%emt 0:00:11]} 13. Bxe6 $1 {[%emt 0:02:02]} fxg2 {[%emt 0:11:19]} 14. Bh3+ {[%emt 0:08:22]} (14. Bd5+ $1 $11 Kf8 15. Bxg2) 14... Kf7 $17 {[%emt 0:01:05] Really sharp!} 15. Bxg2 {[%emt 0:02:24]} Bxg2 {[%emt 0:02:25]} 16. Kxg2 {[%emt 0:00:07]} Re8 $36 {[%emt 0:00:08][%mdl 2048] Prevents f5. Keeping White busy.} 17. Qf2 {[%emt 0:02:23]} Nf5 {[%emt 0:00:50] ...Qf6 would now be deadly.} 18. Bd2 {[%emt 0:01:12]} Qf6 {[%emt 0:01:02] Black is more active.} 19. Rae1 {[%emt 0:01:45]} (19. Bc3 $17 Qg6+ 20. Kh1) 19... Qxb2 $19 {[%emt 0:03:28]} 20. Re5 {[%emt 0:10:38]} g6 {[%emt 0:00:06]} (20... Rxe5 21. fxe5 g6 22. Qf3 $11) 21. Qe2 $2 {[%emt 0:03:47]} (21. Rc1 {was worth a try.}) 21... Qxc2 {[%emt 0:13:53]} 22. Rxf5+ {[%emt 0:05:17]} (22. a5 $142) 22... gxf5 {[%emt 0:00:07]} 23. Qh5+ {[%emt 0:00:12]} Ke7 {[%emt 0:01:21]} 24. Re1+ {[%emt 0:04:21]} Kd6 {[%emt 0:00:12]} 25. Rxe8 {[%emt 0:00:11]} Qxd2+ {[%emt 0:00:22][%mdl 4096] Endgame KQR-KQR. Black is two pawns up.} 26. Kg3 {[%emt 0:01:42]} (26. Qe2 $142 Qxe2+ (26... Rxe8 $2 {perishes.} 27. Qxd2 Kc6 28. Kf1 $18) 27. Rxe2) 26... Qxd3+ {[%emt 0:00:11]} 27. Kh4 {[%emt 0:00:23]} Rxe8 {[%emt 0:02:22]} 28. Qxe8 {[%emt 0:00:06] KQ-KQ. Black is 3 pawns up.} Qe4 {[%emt 0:00:32]} 29. Qb8+ {[%emt 0:00:46]} Ke7 {[%emt 0:00:07]} 30. h3 {[%emt 0:02:02]} Qe6 {[%emt 0:04:08]} ({Stronger than} 30... Qxa4 31. Qe5+ Kd8 32. Qb8+ Ke7 33. Qe5+ Kf7 34. Qxf5+ Ke8 35. Qe5+ Kf7 36. Qd5+ Kf8 37. Qf5+ Ke7 38. Qe5+ Kf7 39. Qf5+ Kg8 40. Qd5+ Kf8 41. Qf5+ Ke8 42. Qe5+ Kd8 43. Qb8+ Ke7 44. Qe5+ Kd8 45. Qb8+ Ke7 46. Qe5+ $11) 31. Kg5 {[%emt 0:01:22]} Qg6+ {[%emt 0:00:08]} 32. Kh4 {[%emt 0:00:05]} Qd6 {[%emt 0:00:45]} 33. Qb7 {[%emt 0:00:28]} Qxf4+ {[%emt 0:00:10]} 34. Kh5 {[%emt 0:00:04]} Qg3 {[%emt 0:00:58] Inhibits Qg2.} 35. Qxb6 {[%emt 0:00:35]} Qxh3+ {[%emt 0:00:16]} 36. Kg5 {[%emt 0:00:04]} Qg4+ {[%emt 0:00:09]} 37. Kh6 {[%emt 0:00:05]} Qg6+ {[%emt 0:00:04]} 38. Qxg6 {[%emt 0:00:04]} hxg6 {[%emt 0:00:05]} 0-1

[Event "98th Caplin Hastings Masters 2024-25"]
[Site "Hastings"]
[Date "2024.12.28"]
[Round "1.3"]
[White "Boyer, Mahel"]
[Black "Badacsonyi, Frankie"]
[Result "1-0"]
[ECO "A07"]
[WhiteElo "2526"]
[BlackElo "2218"]
[Annotator "TA"]
[PlyCount "71"]
[EventDate "2024.12.23"]
[EventType "swiss"]
[EventCountry "ENG"]
[SourceTitle "playchess.com"]
[Source "ChessBase"]
[SourceQuality "1"]
[TimeControl "5400+30"]

{[%evp 9,71,27,26,39,47,43,40,42,40,16,28,19,41,39,50,43,45,43,84,81,77,83,77,37,68,53,68,65,84,55,72,46,52,52,55,18,60,36,42,38,102,21,22,0,114,0,0,13,20,18,10,0,162,157,262,245,260,232,305,305,509,530,520,511]} 1. Nf3 {[%emt 0:00:08]} d5 {[%emt 0:00:20]} 2. g3 {[%emt 0:00:28]} Nd7 {[%emt 0:00:53]} 3. Nc3 {[%emt 0:04:32]} Ngf6 {[%emt 0:01:48]} 4. d4 {[%emt 0:00:10]} Nb6 {[%emt 0:02:16]} 5. Bg2 {[%emt 0:00:53]} Bf5 {[%emt 0:03:18]} 6. Nh4 {[%emt 0:00:13]} e6 {[%emt 0:00:40][%cal Be7e6,Be6f5][%mdl 32]} 7. Nxf5 {[%emt 0:00:17]} exf5 {[%emt 0:00:06]} 8. Qd3 {[%emt 0:00:54]} g6 {[%emt 0:01:44]} 9. f3 {[%emt 0:16:24]} Bg7 {[%emt 0:21:53]} 10. e4 {[%emt 0:03:51]} dxe4 {[%emt 0:07:50]} 11. fxe4 {[%emt 0:00:07]} fxe4 {[%emt 0:02:35]} 12. Nxe4 {[%emt 0:00:06]} O-O {[%emt 0:00:35]} 13. Bg5 {[%emt 0:00:13]} Qe8 {[%emt 0:00:51]} 14. Bxf6 {[%emt 0:07:13]} Bxf6 {[%emt 0:00:09]} 15. O-O-O {[%emt 0:00:18]} Bg7 {[%emt 0:03:46]} 16. Kb1 {[%emt 0:06:06]} c6 {[%emt 0:02:25]} 17. h4 {[%emt 0:00:38][%cal Bh2h4,Bh4h5,Bh5h6][%mdl 32] White is more active.} Rd8 {[%emt 0:04:00]} 18. c3 {[%emt 0:00:19]} Qe6 {[%emt 0:06:27]} 19. h5 {[%emt 0:03:19]} Rfe8 {[%emt 0:02:16]} 20. h6 {[%emt 0:21:19]} Bh8 {[%emt 0:00:21]} 21. Rhf1 {[%emt 0:00:11]} Re7 {[%emt 0:09:09]} 22. Rf2 {[%emt 0:02:25]} Qc4 {[%emt 0:05:43]} 23. Qf3 {[%emt 0:04:38]} f5 {[%emt 0:01:07]} 24. Nc5 {[%emt 0:00:56]} Qd5 {[%emt 0:02:05] [#]} (24... Rde8 $1 $14) 25. Qd3 {[%emt 0:02:26]} (25. g4 $1 $16) 25... Qc4 $11 {[%emt 0:00:30]} 26. Qf3 {[%emt 0:04:49]} (26. Qd2 $11 Qf7 27. Bf3) 26... Qd5 $16 {[%emt 0:00:13] [#]} 27. Re2 {[%emt 0:05:56]} (27. g4 $1 $16) 27... Qxf3 $11 {[%emt 0:03:03]} 28. Bxf3 {[%emt 0:00:05][%cal Bg2f3,Bf3e2,Be2d3][%mdl 32]} Rxe2 {[%emt 0:00:43]} 29. Bxe2 {[%emt 0:00:04]} Re8 {[%emt 0:00:06]} 30. Re1 {[%emt 0:00:25][%cal Oe2c4] Hoping for Bc4+!.} Rb8 $2 {[%emt 0:06:38]} (30... Kf8 $11 {and Black is okay.}) 31. g4 $36 {[%emt 0:02:05][%mdl 2048] Black is under strong pressure.} Bf6 {[%emt 0:04:58]} (31... fxg4 $16 32. Bxg4 Bf6) 32. gxf5 {[%emt 0:00:45]} gxf5 {[%emt 0:01:08]} 33. Rf1 {[%emt 0:02:42]} Re8 {[%emt 0:02:10]} 34. Bd3 {[%emt 0:00:16]} ({Not} 34. Rxf5 Bxd4 35. Rg5+ (35. cxd4 Rxe2 36. Nxb7 Rh2 $16) (35. Nxb7 Bxc3 36. Bh5 Re5 $16) 35... Kf8 36. cxd4 Rxe2 $14) 34... Re7 $2 {[%emt 0:01:45]} (34... Bh4 35. Bxf5 (35. Nxb7 Re6 $18) (35. Rxf5 Nd5 $18) 35... Re1+ 36. Rxe1 Bxe1 37. Nxb7 (37. Be6+ Kf8 $18) 37... Nd5) 35. Bxf5 {[%emt 0:00:52]} Nc4 {[%emt 0:01:13] ...Nd2+ is the strong threat.} 36. Rg1+ {[%emt 0:00:10]} (36. Be6+ Rxe6 37. Rg1+ (37. Nxe6 $2 {loses.} Nd2+ 38. Kc2 Nxf1 $19) 37... Kf7 38. Nxe6 Kxe6 $15) 1-0

[Event "98th Caplin Hastings Masters 2024-25"]
[Site "Hastings"]
[Date "2024.12.28"]
[Round "1.4"]
[White "Muir, Andrew J"]
[Black "Stefansson, Vignir Vatnar"]
[Result "0-1"]
[ECO "D31"]
[WhiteElo "2214"]
[BlackElo "2537"]
[Annotator "TA"]
[PlyCount "70"]
[EventDate "2024.12.23"]
[EventType "swiss"]
[EventCountry "ENG"]
[SourceTitle "playchess.com"]
[Source "ChessBase"]
[SourceQuality "1"]
[TimeControl "5400+30"]

{[%evp 9,70,23,37,35,34,23,23,27,41,29,31,33,72,52,48,60,53,52,63,54,122,108,113,109,139,131,108,122,70,0,0,-16,-25,-22,-41,-39,-37,-53,0,-5,0,0,0,0,39,0,61,59,70,77,95,80,92,83,93,83,98,21,31,-840,-818,-811,-801]} 1. d4 {[%emt 0:00:04]} d5 {[%emt 0:00:40]} 2. c4 {[%emt 0:00:10]} e6 {[%emt 0:00:06]} 3. Nc3 {[%emt 0:00:08]} a6 {[%emt 0:00:07]} 4. cxd5 {[%emt 0:01:09]} exd5 {[%emt 0:00:51]} 5. Qb3 {[%emt 0:00:25]} Nf6 {[%emt 0:01:25]} 6. Bg5 {[%emt 0:03:16]} c6 {[%emt 0:01:06]} 7. e4 {[%emt 0:01:54]} dxe4 {[%emt 0:00:47][%cal Of8e7]} 8. Bc4 {[%emt 0:00:30]} Qe7 {[%emt 0:01:48]} 9. a4 $1 {[%emt 0:02:08]} h6 {[%emt 0:06:06]} 10. Bxf6 {[%emt 0:07:18]} Qxf6 {[%emt 0:05:26]} 11. Nge2 {[%emt 0:19:55][%cal Oe1g1]} Qg6 {[%emt 0:03:54][%cal Of8d6]} 12. O-O {[%emt 0:06:58]} Bd6 {[%emt 0:03:13] Repels Nf4} 13. Ng3 {[%emt 0:05:24]} O-O {[%emt 0:03:56]} 14. Ncxe4 {[%emt 0:01:09]} (14. Ngxe4 Bc7 $11) 14... a5 {[%emt 0:02:03]} ({Black should play} 14... Bf4 $14) 15. Nxd6 {[%emt 0:04:40]} Qxd6 {[%emt 0:00:26]} 16. Rfe1 {[%emt 0:00:37]} Qd8 {[%emt 0:04:55][%cal Ob8a6]} 17. Re3 {[%emt 0:07:07] And now Rae1 would win.} Na6 {[%emt 0:00:51]} 18. Rae1 {[%emt 0:01:24][%cal Ba1e1,Be1e7,Be7d7][%mdl 32]} Nc7 {[%emt 0:00:18][%cal Oc8e6]} 19. Rf3 {[%emt 0:12:25]} (19. Nh5 $1 $14 Bg4 20. Nxg7 Kxg7 21. Rg3) 19... Be6 $11 {[%emt 0:06:35]} 20. Bxe6 {[%emt 0:05:45]} Nxe6 {[%emt 0:00:11]} 21. Nf5 {[%emt 0:01:08]} Nxd4 {[%emt 0:13:05]} 22. Nxd4 {[%emt 0:04:12]} Qxd4 {[%emt 0:00:29]} 23. Re7 {[%emt 0:05:06]} Qc5 {[%emt 0:01:14]} (23... b5 $1 $15 24. Rfxf7 Rxf7 25. Qxf7+ Kh7 26. Qf5+ Kh8) 24. Rd7 {[%emt 0:03:01][%cal Oh2h3]} Rae8 {[%emt 0:05:51][%cal Re8e1]} 25. h3 {[%emt 0:01:05][%cal Rf3f7]} Re7 {[%emt 0:09:17]} 26. Rxb7 {[%emt 0:00:31]} Re1+ {[%emt 0:05:43]} 27. Kh2 {[%emt 0:00:04][%cal Rf3f7]} Qd6+ {[%emt 0:02:10]} (27... Qc1 $11 28. Kg3 Qg5+ 29. Kh2 Qc1) 28. g3 $14 {[%emt 0:01:19][%cal Rf3f7]} Qg6 {[%emt 0:00:56]} 29. Qd3 $1 {[%emt 0:01:20]} Qg5 {[%emt 0:00:32]} 30. Rf4 {[%emt 0:00:32]} Qh5 {[%emt 0:06:17]} 31. Qf3 {[%emt 0:00:44]} Qg6 {[%emt 0:00:06]} 32. Rc7 {[%emt 0:01:13]} Rc1 {[%emt 0:00:04]} 33. Rf5 {[%emt 0:00:24]} (33. b3 $16) 33... Qe6 $11 {[%emt 0:00:40]} 34. Rxa5 $2 {[%emt 0:00:37][%mdl 8192]} (34. h4 $14) 34... Qe1 $19 {[%emt 0:00:16]} 35. Qg2 {[%emt 0:00:19] Against Qg1+} Qxa5 {[%emt 0:00:06]} 0-1

[Event "98th Caplin Hastings Masters 2024-25"]
[Site "Hastings"]
[Date "2024.12.28"]
[Round "1.5"]
[White "Royal, Shreyas"]
[Black "Steiners, Emils"]
[Result "0-1"]
[ECO "B33"]
[WhiteElo "2522"]
[BlackElo "2209"]
[Annotator "TA"]
[PlyCount "146"]
[EventDate "2024.12.23"]
[EventType "swiss"]
[EventCountry "ENG"]
[SourceTitle "playchess.com"]
[Source "ChessBase"]
[SourceQuality "1"]
[TimeControl "5400+30"]

{[%evp 73,146,0,0,-38,-3,-5,-8,-14,0,0,0,0,0,0,0,-801,25,-191,-185,-456,-466,-421,-358,-4922,-379,-397,-419,-470,-470,-470,-462,-462,-348,-422,-238,-440,-437,-460,-460,-540,-538,-522,-516,-507,-502,-819,-806,-868,-889,-831,-750,-943,-925,-899,-888,-879,-866,-1056,-1038,-987,-806,-990,-928,-1814,-1731,-29967,-12821,-29967,-29971,-29976,-29977,-29977,-29978,-12843,-6050]} 1. e4 {[%emt 0:00:08]} c5 {[%emt 0:00:10]} 2. Nf3 {[%emt 0:00:08]} Nc6 {[%emt 0:00:08]} 3. d4 {[%emt 0:00:05]} cxd4 {[%emt 0:00:08]} 4. Nxd4 {[%emt 0:00:03]} Nf6 {[%emt 0:00:08]} 5. Nc3 {[%emt 0:00:05]} e5 {[%emt 0:00:05]} 6. Ndb5 {[%emt 0:00:05]} d6 {[%emt 0:00:08]} 7. Nd5 {[%emt 0:00:05]} Nxd5 {[%emt 0:00:09]} 8. exd5 {[%emt 0:00:04]} Nb8 {[%emt 0:00:09]} 9. a4 {[%emt 0:01:19]} a6 {[%emt 0:01:50]} 10. Na3 {[%emt 0:01:01]} Be7 {[%emt 0:01:01]} 11. Nc4 {[%emt 0:04:34]} O-O {[%emt 0:04:23]} 12. a5 {[%emt 0:02:13]} Nd7 {[%emt 0:01:27]} 13. Be2 {[%emt 0:03:02]} f5 {[%emt 0:03:54]} 14. Bd2 {[%emt 0:11:48]} Nf6 {[%emt 0:05:41]} 15. Bb4 {[%emt 0:02:13]} Re8 {[%emt 0:02:49]} 16. O-O {[%emt 0:03:28]} f4 {[%emt 0:17:21]} 17. f3 {[%emt 0:04:55]} Kh8 {[%emt 0:00:08]} 18. Qd3 {[%emt 0:00:00]} Bd7 {[%emt 0:16:24]} 19. Nb6 {[%emt 0:09:34]} Rb8 {[%emt 0:01:08]} 20. Rfd1 {[%emt 0:01:47]} Qc7 {[%emt 0:07:10]} 21. Ra3 {[%emt 0:00:20]} Rbd8 {[%emt 0:01:48]} 22. Be1 {[%emt 0:02:01]} g6 {[%emt 0:04:54]} 23. Rc3 {[%emt 0:05:23]} Qb8 {[%emt 0:00:38]} 24. Nxd7 {[%emt 0:00:04]} Rxd7 {[%emt 0:01:44]} 25. Bf2 {[%emt 0:00:52]} Bd8 {[%emt 0:03:41]} 26. b4 {[%emt 0:00:19]} Kg8 {[%emt 0:01:00]} 27. Rb3 {[%emt 0:01:01]} Qc8 {[%emt 0:03:12]} 28. c4 {[%emt 0:00:23]} Rf7 {[%emt 0:01:26]} 29. Qc2 {[%emt 0:10:42]} e4 {[%emt 0:01:57]} 30. Bd4 {[%emt 0:07:24]} exf3 {[%emt 0:05:46]} 31. Bxf3 {[%emt 0:00:11]} Ng4 {[%emt 0:00:47]} 32. c5 {[%emt 0:02:48]} Ne3 {[%emt 0:02:51]} 33. Bxe3 {[%emt 0:00:06]} fxe3 {[%emt 0:00:18]} 34. Qe2 {[%emt 0:00:05]} Bg5 {[%emt 0:10:23]} 35. cxd6 {[%emt 0:00:05]} Qd8 {[%emt 0:00:50]} 36. d7 {[%emt 0:03:19]} Rxd7 {[%emt 0:01:02]} 37. Bg4 {[%emt 0:00:04]} Rd6 $1 {[%emt 0:00:25]} (37... Rxd5 $2 38. Qc4 $18) 38. b5 {[%emt 0:00:43]} Kg7 {[%emt 0:01:03]} (38... Rxd5 $2 39. Qc4 $18) (38... h5 $5 39. Bf3 Qxa5 $15) 39. bxa6 {[%emt 0:00:34]} bxa6 {[%emt 0:00:06]} 40. Rb7+ {[%emt 0:02:28]} Kh8 {[%emt 0:00:10]} 41. Rf1 {[%emt 0:01:10]} Rf6 {[%emt 0:01:47]} (41... Rxd5 $2 42. Rff7 Rb5 (42... Rxa5 $2 43. Rxh7+ Kg8 44. Qc4+ Qd5 45. Qc3 $18) 43. Rxb5 (43. Rxh7+ Kg8 $18) 43... axb5 44. Qb2+ $18 (44. Qxb5 Rf8 $16)) 42. Qb2 {[%emt 0:00:04]} Kg8 {[%emt 0:00:26]} 43. Rd1 {[%emt 0:01:47]} Qd6 {[%emt 0:00:43]} 44. Rb6 $2 {[%emt 0:01:10][%mdl 8192]} (44. Kh1 $11) 44... Qf4 $2 {[%emt 0:00:28]} ({Better is} 44... e2 $1 $19 {[%cal Re2d1]} 45. Qxe2 Qc5+ 46. Kh1 Rxe2 47. Bxe2 Rxb6 (47... Qxa5 $2 48. Rxf6 Bxf6 49. d6 $19) 48. axb6 Qxb6) 45. Be6+ $2 {[%emt 0:01:24]} (45. Be2 $11) 45... Kg7 $19 {[%emt 0:00:39]} 46. Rb7+ $2 {[%emt 0:00:24]} (46. Rb1) 46... Kh6 $19 {[%emt 0:00:08]} 47. Qe2 {[%emt 0:00:55]} Ref8 {[%emt 0:00:38]} 48. g3 $2 {[%emt 0:00:11]} (48. Bg4 Qf2+ 49. Qxf2 Rxf2 50. h4 Bxh4 51. Rb4) 48... Qf2+ $2 {[%emt 0:00:31]} (48... Qe4 {( -> ...Rf2)} 49. h4 Rf2 50. hxg5+ Kxg5 51. Qg4+ Qxg4 52. Bxg4 Kxg4) 49. Qxf2 $19 {[%emt 0:00:02]} Rxf2 {[%emt 0:00:13]} 50. h4 {[%emt 0:00:44]} e2 {[%emt 0:00:55]} 51. hxg5+ {[%emt 0:00:00]} Kxg5 {[%emt 0:00:06]} 52. Rbb1 {[%emt 0:00:00]} exd1=Q+ {[%emt 0:00:25]} (52... exd1=N 53. Rxd1 Re2 54. Bh3 $19) 53. Rxd1 {[%emt 0:00:00]} R2f6 {[%emt 0:00:38]} (53... Re2 $142 54. Ra1 Rf3) 54. Rb1 $2 {[%emt 0:00:17]} (54. Kg2 {was called for.}) 54... h5 $19 {[%emt 0:00:25]} 55. Rb2 {[%emt 0:00:18]} Rf3 {[%emt 0:00:46]} 56. Rd2 {[%emt 0:01:34]} Rxg3+ {[%emt 0:00:33]} 57. Kh2 {[%emt 0:00:01]} Rgf3 {[%emt 0:00:37]} 58. Kg2 {[%emt 0:00:07]} R3f6 {[%emt 0:00:10]} 59. Bd7 {[%emt 0:00:04]} (59. Re2 $142) 59... Rd8 $19 {[%emt 0:00:23]} 60. Ba4 {[%emt 0:00:01]} Kh6 {[%emt 0:00:55]} 61. Bb3 {[%emt 0:00:10]} g5 {[%emt 0:00:17]} 62. Re2 {[%emt 0:00:06]} g4 {[%emt 0:00:18]} 63. Bc4 {[%emt 0:00:07]} Rdd6 {[%emt 0:00:34]} 64. Re5 {[%emt 0:00:12]} Rf4 {[%emt 0:00:31]} 65. Bd3 {[%emt 0:00:41]} Rd4 {[%emt 0:00:30]} 66. Be4 {[%emt 0:00:05]} Ra4 {[%emt 0:00:28]} 67. Kg3 {[%emt 0:00:11]} Ra3+ {[%emt 0:00:51]} (67... Rxa5 68. Kh4 $17) 68. Kf4 {[%emt 0:00:05]} Rf6+ {[%emt 0:00:10]} 69. Rf5 {[%emt 0:00:06]} Rxf5+ {[%emt 0:00:29]} (69... Kg6 $142 70. Ke5 Rxf5+ 71. Bxf5+ Kg5 72. Be4 Rxa5 73. Kd4 Ra4+ 74. Kd3 Rxe4 75. Kxe4 Kf6 76. Kf4 a5 77. Ke4 Ke7 78. Kd4 a4 79. Kd3 Kd6 80. Kd4 a3 81. Kc3 g3 (81... Kxd5 {gets mated.} 82. Kb3 g3 83. Kxa3 g2 84. Kb3 g1=Q 85. Kc3 Qd4+ 86. Kb3 Qd2 87. Ka4 Kc4 88. Ka3 Qf2 89. Ka4 Qa7#) 82. Kb3 g2 (82... Kxd5 83. Kxa3 g2 84. Kb3 g1=Q 85. Kc3 Qe3+ 86. Kc2 Kc4 87. Kd1 Qf2 88. Kc1 Kc3 89. Kd1 Qf1#) 83. Kxa3 g1=Q (83... g1=R 84. Kb2 h4 85. Kc3 h3 86. Kd2 Kxd5 87. Ke3 h2 88. Kf4 h1=Q 89. Ke3 Qh3+ 90. Kf4 Rg4+ 91. Kf5 Qf3#) 84. Kb2 Kxd5 85. Kc3 Qd1 86. Kb4 Qc2 87. Kb5 Qb3+ (87... Qf2 88. Kb4 Qb2+ 89. Ka4 Kc4 90. Ka5 Qb5#) 88. Ka5 Kc6 89. Ka6 Qb6#) 70. Kxf5 {[%emt 0:00:01]} Kg7 {[%emt 0:00:58]} 71. d6 {[%emt 0:00:08]} Kf7 {[%emt 0:00:24]} 72. Bd5+ {[%emt 0:00:14]} Ke8 {[%emt 0:00:10]} 73. Bc6+ {[%emt 0:00:04]} Kd8 {[%emt 0:01:21]} 0-1

[Event "98th Caplin Hastings Masters 2024-25"]
[Site "Hastings"]
[Date "2024.12.28"]
[Round "1.6"]
[White "Golding, James"]
[Black "Xue, Haowen"]
[Result "0-1"]
[ECO "E11"]
[WhiteElo "2203"]
[BlackElo "2502"]
[Annotator "TA"]
[PlyCount "52"]
[EventDate "2024.12.23"]
[EventType "swiss"]
[EventCountry "ENG"]
[SourceTitle "playchess.com"]
[Source "ChessBase"]
[SourceQuality "1"]
[TimeControl "5400+30"]

{[%evp 12,52,34,35,30,-16,-25,-19,-28,-18,-25,-11,-12,-21,-11,-42,-45,-52,-61,-50,-76,-20,-48,-349,-341,-375,-363,-914,-925,-945,-962,-1141,-1116,-1037,-434,-427,-433,-542,-535,-766,-781,-785,-785]} 1. d4 {[%emt 0:00:03]} Nf6 {[%emt 0:00:08]} 2. c4 {[%emt 0:00:05]} e6 {[%emt 0:00:08]} 3. Nf3 {[%emt 0:00:04]} Bb4+ {[%emt 0:00:12]} 4. Bd2 {[%emt 0:00:07]} Qe7 {[%emt 0:00:09]} 5. g3 {[%emt 0:00:07]} Nc6 {[%emt 0:00:12]} 6. a3 {[%emt 0:02:14]} Bxd2+ {[%emt 0:00:15]} 7. Qxd2 {[%emt 0:00:06]} d5 {[%emt 0:01:47]} 8. b3 {[%emt 0:12:06]} (8. Qc3 $142) 8... dxc4 $11 {[%emt 0:04:43]} 9. bxc4 {[%emt 0:00:14]} e5 {[%emt 0:00:11]} 10. d5 {[%emt 0:02:26]} e4 {[%emt 0:00:21]} 11. Nd4 {[%emt 0:02:48]} Ne5 {[%emt 0:01:30]} 12. Qc3 {[%emt 0:06:04]} c5 {[%emt 0:37:38]} 13. Nb5 {[%emt 0:19:44] d6 is the strong threat.} (13. dxc6 {simplifies} Nxc6 14. Nxc6 bxc6 15. Nd2) 13... O-O {[%emt 0:00:38]} 14. d6 {[%emt 0:06:29]} Qe6 {[%emt 0:00:12][%cal Oe5d3]} 15. Nc7 {[%emt 0:00:19][%csl LRa8,LRe6]} Qxd6 {[%emt 0:01:47]} 16. Nxa8 {[%emt 0:00:06]} e3 $40 {[%emt 0:05:53][%mdl 128] Black attacks.} 17. f3 $2 {[%emt 0:20:15][%mdl 8192] [#]} ({White should play} 17. Qxe3 $15 Re8 18. Nc7 Nd3+ (18... Qxc7 19. Bg2 $11) 19. Qxd3 Qxd3 20. Nxe8) 17... Rd8 $1 $19 {[%emt 0:02:19]} 18. Qc1 {[%emt 0:00:15][%cal Of1g2] Inhibits Qd1+.} (18. Qxe3 $2 Qd1+ (18... Nxc4 19. Qd3 $16) 19. Kf2 Nfg4+ (19... Nxc4 20. Qc3 $16) 20. fxg4 Nxg4+ 21. Kf3 Nxe3 $19) 18... Ne4 {[%emt 0:07:11][%cal Oe5c4] ...Nxc4! is the strong threat.} 19. Bg2 $2 {[%emt 0:09:04] [#]} ({Not} 19. fxe4 Qf6 20. Qxe3 Ng4 $19) (19. f4 Nxc4 20. Bg2) 19... Nxg3 $1 {[%emt 0:03:18][%mdl 512]} 20. Nc3 {[%emt 0:05:33]} (20. Qxe3 Re8) 20... Nxh1 {[%emt 0:04:06]} 21. Qxe3 {[%emt 0:00:08]} Nxc4 {[%emt 0:00:31][%cal Be5c4,Bc4e3,Be3g2,Bg2f4][%mdl 32]} 22. Qd3 {[%emt 0:01:46]} Qxd3 {[%emt 0:01:14]} (22... Qf6 $142 23. Qxc4 Rd4 24. Qxd4 Qxd4) 23. exd3 {[%emt 0:00:07]} Ne3 {[%emt 0:00:05]} (23... Rxd3 $2 24. Rc1 $17) 24. Ke2 {[%emt 0:07:47]} Nxg2 {[%emt 0:00:08]} 25. Nc7 {[%emt 0:01:05]} Nf4+ {[%emt 0:00:32]} 26. Ke3 {[%emt 0:00:56] [#]} g5 $1 {[%emt 0:00:13]} 0-1